bitfinex/quotes_SOLUSD_20241007
["timestamp","ask_amount","ask_price","bid_price","bid_amount"]
[1728317836099,0.83049,148.51,148.5,6.734]
[1728317836996,0.83049,148.51,148.49,16.8356]
[1728317837200,0.83049,148.51,148.49,23.57]
[1728317837703,0.83049,148.51,148.5,8.080411]
[1728317838005,0.83049,148.51,148.5,6.734]
[1728317838797,0.83049,148.51,148.49,23.5699]
[1728317839227,0.83049,148.51,148.48,6.7348]
[1728317839414,0.83049,148.51,148.46,16.8389]
[1728317839923,7.56439,148.51,148.47,6.7353]
[1728317840109,0.83049,148.51,148.48,6.7348]
[1728317841224,0.83049,148.51,148.49,6.7343]
[1728317841597,0.83049,148.51,148.46,16.8389]
[1728317841917,6.86279,148.51,148.43,16.8422]
[1728317842213,13.59639,148.51,148.45,16.84]
[1728317842411,13.59639,148.51,148.47,6.7353]
[1728317842613,6.734,148.5,148.46,6.7356]
[1728317842999,6.86279,148.51,148.46,6.7356]
[1728317843199,6.7341,148.5,148.46,6.7355]
[1728317843412,6.734,148.5,148.45,23.5761]
[1728317843616,6.734,148.5,148.45,16.84]
[1728317843824,6.7346,148.49,148.45,23.5761]
[1728317844023,1.3496109,148.49,148.42,23.5807]
[1728317844393,23.69709,148.51,148.43,6.7368]
[1728317844591,6.7352,148.48,148.43,6.7368]
[1728317844831,25.0467009,148.51,148.43,6.7368]
[1728317845008,6.7354,148.47,148.43,6.7368]
[1728317845197,25.0467009,148.51,148.43,6.7368]
[1728317845398,6.7353,148.47,148.43,6.7368]
[1728317845894,25.0467009,148.51,148.42,16.8435]
[1728317845895,6.7349,148.48,148.42,16.8435]
[1728317846222,6.7351,148.48,148.42,16.8435]
[1728317846414,6.7354,148.47,148.43,6.737]
[1728317846608,23.69709,148.51,148.42,16.8435]
[1728317846921,6.7354,148.47,148.43,6.737]
[1728317847319,6.7354,148.47,148.43,6.7368]
[1728317848502,6.7354,148.47,148.42,23.581]
[1728317848902,6.7354,148.47,148.39,33.6936]
[1728317848903,6.7371,148.44,148.39,23.5855]
[1728317849119,6.738,148.42,148.37,6.7397]
[1728317849295,15.9612,148.45,148.38,6.7393]
[1728317849500,6.7376,148.42,148.38,6.7393]
[1728317849901,6.7374,148.43,148.32,62.32153122]
[1728317850210,6.7374,148.43,148.39,6.7389]
[1728317851714,6.7384,148.41,148.35,16.8514]
[1728317852428,6.7386,148.4,148.36,6.74]
[1728317852629,6.1254,148.43,148.35,16.8514]
[1728317852630,6.7392,148.39,148.35,16.8514]
[1728317852822,6.7386,148.4,148.35,23.5918]
[1728317853033,6.7384,148.41,148.37,6.7398]
[1728317853217,6.7377,148.42,148.38,6.7394]
[1728317853527,12.8628,148.43,148.39,6.7388]
[1728317853728,12.8628,148.43,148.38,6.7393]
[1728317853937,7.4750109,148.43,148.34,16.8523]
[1728317854931,7.4750109,148.43,148.34,23.5934]
[1728317855133,6.1254,148.43,148.36,16.8503]
[1728317855319,6.1254,148.43,148.38,16.8481]
[1728317855521,15.9612,148.45,148.39,1.34736298]
[1728317855728,15.9612,148.45,148.42,23.5812]
[1728317855918,15.9612,148.45,148.43,1.34722691]
[1728317856541,6.7355,148.47,148.43,8.08432691]
[1728317856912,6.4302,148.48,148.43,1.34722691]
[1728317857139,16.3481,148.49,148.45,6.7359]
[1728317857340,0.83049,148.51,148.48,6.7349]
[1728317857541,7.56429,148.51,148.46,23.5746]
[1728317857842,0.83049,148.51,148.48,6.7347]
[1728317858013,0.83049,148.51,148.49,1.34660262]
[1728317858637,0.83049,148.51,148.47,6.7353]
[1728317859440,0.83049,148.51,148.48,6.7347]
[1728317859738,0.83049,148.51,148.49,8.08055275]
[1728317859920,0.83049,148.51,148.49,1.34655275]
[1728317860231,0.83049,148.51,148.5,6.734]
[1728317861933,0.83049,148.51,148.5,8.08023371]
[1728317862442,0.83049,148.51,148.5,31.85711771]
[1728317862944,0.83049,148.51,148.5,30.510884]
[1728317863518,0.83049,148.51,148.5,6.734]
[1728317863743,0.83049,148.51,148.49,6.7342]
[1728317863933,0.83049,148.51,148.5,6.734]
[1728317864445,0.83049,148.51,148.5,8.08024178]
[1728317865214,0.83049,148.51,148.5,31.85712578]
[1728317866523,0.83049,148.51,148.5,30.510884]
[1728317868148,0.83049,148.51,148.49,16.8357]
[1728317868447,0.83049,148.51,148.5,6.734]
[1728317870347,0.83049,148.51,148.5,30.510884]
[1728317872125,0.83049,148.51,148.5,50.510884]
[1728317872365,0.83049,148.51,148.5,82.45556079]
[1728317872646,0.83049,148.51,148.5,98.26206079]
[1728317875334,0.83049,148.51,148.5,96.91611759]
[1728317875835,0.1,148.59,148.58,6.7303]
[1728317876163,0.1,148.59,148.58,8.07584853]
[1728317876324,0.1,148.59,148.58,6.7303]
[1728317876660,0.1,148.59,148.58,30.507184]
[1728317877225,0.1,148.59,148.58,31.85266112]
[1728317877425,0.1,148.59,148.58,51.85266112]
[1728317878730,22.8085,148.68,148.58,51.85266112]
[1728317878930,6.7248,148.71,148.65,6.7272]
[1728317879240,0.33049,148.66,148.65,8.07203481]
[1728317880158,0.33049,148.66,148.63,6.7277]
[1728317880461,0.33049,148.66,148.63,16.8197]
[1728317880751,0.33049,148.66,148.65,6.7272]
[1728317880926,0.33049,148.66,148.57,15.6198]
[1728317881126,0.33049,148.66,148.63,6.7279]
[1728317881355,0.33049,148.66,148.64,1.34506659]
[1728317881535,0.33049,148.66,148.65,6.7272]
[1728317882627,0.33049,148.66,148.63,16.8196]
[1728317882628,0.33049,148.66,148.63,23.5473]
[1728317882947,0.33049,148.66,148.65,6.7272]
[1728317883844,0.33049,148.66,148.65,30.504084]
[1728317884642,0.33049,148.66,148.64,6.7276]
[1728317885047,0.33049,148.66,148.56,41.14016992]
[1728317885048,0.33049,148.66,148.6,16.823]
[1728317885242,6.7276,148.64,148.6,23.5523]
[1728317885549,0.33049,148.66,148.53,49.91448069]
[1728317885550,21.97939,148.66,148.53,49.91448069]
[1728317885928,21.97939,148.66,148.53,45.89423359]
[1728317886132,6.7272,148.65,148.6,6.7291]
[1728317886331,21.97939,148.66,148.6,6.7291]
[1728317886332,6.7277,148.64,148.6,6.7291]
[1728317886560,6.7277,148.64,148.53,45.89423359]
[1728317886561,1.3496109,148.65,148.56,16.8279]
[1728317886743,6.7293,148.61,148.56,23.5591]
[1728317886946,6.7295,148.6,148.56,23.5591]
[1728317888163,23.776884,148.63,148.54,6.7321]
[1728317888332,6.7299,148.59,148.55,6.7316]
[1728317888534,6.7297,148.6,148.55,6.7316]
[1728317888732,6.73,148.59,148.54,6.732]
[1728317888929,1.3496109,148.62,148.53,23.5635]
[1728317889134,45.692584,148.61,148.53,23.5635]
[1728317889329,6.7311,148.57,148.53,16.831]
[1728317889548,6.73,148.59,148.54,8.07814943]
[1728317890358,6.73,148.59,148.54,6.7321]
[1728317890546,6.7304,148.58,148.53,23.5636]
[1728317890753,21.9157,148.61,148.55,16.8287]
[1728317890946,21.9157,148.61,148.57,6.7304]
[1728317891147,21.9157,148.61,148.58,1.34578115]
[1728317891347,21.9157,148.65,148.6,6.7293]
[1728317891659,6.7277,148.64,148.61,1.34555553]
[1728317891845,21.9157,148.65,148.61,1.34555553]
[1728317892046,21.9157,148.65,148.59,23.5542]
[1728317892047,6.7277,148.64,148.59,23.5542]
[1728317892240,6.7283,148.63,148.59,16.8243]
[1728317892856,6.7291,148.61,148.56,23.5587]
[1728317893039,1.3496109,148.6,148.53,16.8309]
[1728317893359,6.7313,148.56,148.53,16.8309]
[1728317893943,1.3496109,148.61,148.53,16.8309]
[1728317893944,6.7309,148.57,148.53,16.8309]
[1728317894139,6.7309,148.57,148.53,23.5634]
[1728317895145,1.3496109,148.61,148.54,1.34614298]
[1728317895146,6.7299,148.59,148.54,1.34614298]
[1728317895455,6.7299,148.59,148.53,16.8309]
[1728317895758,6.7308,148.57,148.53,23.5634]
[1728317895948,6.7304,148.58,148.54,8.07822049]
[1728317896543,1.3496109,148.64,148.55,16.8288]
[1728317896749,1.3496109,148.64,148.6,6.7293]
[1728317896951,6.728,148.64,148.61,1.34572094]
[1728317897150,6.7287,148.62,148.57,16.8265]
[1728317897345,1.3496109,148.64,148.56,6.7309]
[1728317897548,1.3496109,148.64,148.57,6.7307]
[1728317897549,6.7289,148.62,148.57,6.7307]
[1728317898144,6.7278,148.64,148.6,6.7293]
[1728317898348,1.3496109,148.64,148.58,23.5554]
[1728317898542,6.7282,148.63,148.58,23.5554]
[1728317899265,6.7302,148.59,148.55,23.5603]
[1728317899448,6.7291,148.61,148.57,6.7307]
[1728317899843,1.3496109,148.63,148.55,16.8286]
[1728317900046,1.3496109,148.63,148.55,23.5602]
[1728317900047,6.7301,148.59,148.55,23.5602]
[1728317900250,6.7295,148.6,148.56,6.7312]
[1728317901171,1.3496109,148.64,148.57,18.17235976]
[1728317901357,1.3496109,148.64,148.57,16.8265]
[1728317901554,6.729,148.61,148.57,23.5569]
[1728317901765,6.7287,148.62,148.57,16.8265]
[1728317902070,6.7287,148.62,148.58,6.7303]
[1728317902647,1.3496109,148.64,148.56,6.7309]
[1728317902846,1.3496109,148.64,148.55,6.7316]
[1728317902847,6.73,148.59,148.55,6.7316]
[1728317903055,6.7295,148.6,148.56,6.7312]
[1728317903259,6.7291,148.61,148.57,6.7307]
[1728317906064,6.7295,148.6,148.56,23.5591]
[1728317906269,6.7299,148.59,148.56,16.8279]
[1728317906570,6.7296,148.6,148.53,23.776884]
[1728317906867,6.7296,148.6,148.56,6.7311]
[1728317907852,1.3496109,148.63,148.55,16.829]
[1728317908061,6.7299,148.59,148.55,23.5606]
[1728317909168,1.3496109,148.63,148.54,6.7318]
[1728317909169,6.7304,148.58,148.54,6.7318]
[1728317909375,1.3496109,148.61,148.51,33.6656]
[1728317909550,6.7298,148.6,148.55,6.7314]
[1728317909755,1.3496109,148.61,148.55,6.7314]
[1728317909955,6.7304,148.58,148.54,23.5619]
[1728317910160,40.600684,148.6,148.51,16.8331]
[1728317910365,6.7318,148.55,148.51,23.5663]
[1728317910551,6.7314,148.56,148.52,6.733]
[1728317911056,16.8211,148.63,148.53,1.34624219]
[1728317911256,6.7291,148.61,148.57,6.7308]
[1728317911461,6.7291,148.61,148.58,1.34273767]
[1728317911666,6.7297,148.6,148.55,16.8286]
[1728317911862,6.7297,148.6,148.56,6.7312]
[1728317912871,6.7299,148.59,148.55,23.5601]
[1728317913757,6.7304,148.58,148.54,6.732]
[1728317914170,6.7304,148.58,148.52,16.8319]
[1728317914171,6.7309,148.57,148.53,6.7325]
[1728317914893,6.7316,148.56,148.52,23.5648]
[1728317915577,6.7317,148.55,148.52,16.8319]
[1728317915872,6.7317,148.55,148.47,33.6756]
[1728317915873,6.7335,148.51,148.47,6.7352]
[1728317917067,6.7332,148.52,148.47,6.7352]
[1728317917261,1.3496109,148.51,148.46,16.8387]
[1728317917462,1.3496109,148.54,148.47,1.34682401]
[1728317917661,1.3496109,148.57,148.5,6.7339]
[1728317917870,6.7325,148.54,148.49,6.7343]
[1728317918373,6.7325,148.54,148.5,6.7339]
[1728317918884,8.0822109,148.53,148.48,23.5714]
[1728317919259,8.0822109,148.53,148.45,16.84]
[1728317919260,1.3496109,148.53,148.45,16.84]
[1728317919464,23.776884,148.54,148.45,16.84]
[1728317919781,6.7338,148.51,148.46,6.7355]
[1728317920686,6.734,148.5,148.46,6.7355]
[1728317921357,6.7354,148.47,148.43,6.7371]
[1728317921675,6.7358,148.46,148.42,16.8433]
[1728317922561,8.0859109,148.45,148.42,16.8433]
[1728317922763,8.0859109,148.45,148.4,33.6907]
[1728317922764,6.7368,148.44,148.4,6.7384]
[1728317922962,8.0868109,148.43,148.39,23.5861]
[1728317923173,8.0868109,148.43,148.39,16.8472]
[1728317923357,8.0868109,148.43,148.38,6.7394]
[1728317923358,1.3496109,148.43,148.38,6.7394]
[1728317923555,6.7373,148.43,148.39,8.08651827]
[1728317923974,6.7373,148.43,148.39,6.7389]
[1728317924282,23.776884,148.41,148.34,6.7408]
[1728317924470,6.7394,148.38,148.33,23.5953]
[1728317924859,16.6533,148.42,148.35,16.8513]
[1728317925054,6.5066,148.43,148.41,6.738]
[1728317925280,1.3496109,148.45,148.41,6.738]
[1728317925484,16.6533,148.46,148.41,6.738]
[1728317925485,23.3891,148.46,148.41,6.738]
[1728317925757,1.3496109,148.45,148.41,6.738]
[1728317925961,16.6533,148.46,148.42,6.7375]
[1728317926160,16.6533,148.46,148.39,16.8467]
[1728317926356,23.3892,148.46,148.41,6.7376]
[1728317927178,24.7388109,148.46,148.41,6.7376]
[1728317927675,6.5066,148.47,148.43,6.7371]
[1728317927981,6.5066,148.47,148.42,6.7376]
[1728317927982,1.3496109,148.46,148.42,6.7376]
[1728317928166,13.242,148.47,148.43,6.7371]
[1728317928484,16.6533,148.49,148.38,30.59873359]
[1728317928774,16.6533,148.49,148.45,6.7362]
[1728317928989,16.6533,148.49,148.46,6.7357]
[1728317929675,1.3496109,148.5,148.46,6.7357]
[1728317929970,13.2402,148.51,148.46,6.7357]
[1728317929971,7.8562109,148.51,148.46,1.34701301]
[1728317930174,16.8283,148.56,148.46,1.34701301]
[1728317930175,6.7327,148.53,148.48,6.7348]
[1728317930372,8.0823109,148.53,148.49,1.3467384]
[1728317930583,8.0818109,148.54,148.49,8.0807384]
[1728317931458,1.3496109,148.54,148.49,8.0807384]
[1728317931660,1.3496109,148.54,148.47,16.8376]
[1728317931969,1.3496109,148.54,148.48,6.7348]
[1728317932175,6.7327,148.53,148.49,1.34669097]
[1728317932361,1.3496109,148.52,148.48,6.7348]
[1728317932565,8.0827109,148.52,148.47,23.5729]
[1728317932779,6.7336,148.51,148.47,23.5729]
[1728317933279,6.7336,148.51,148.47,16.8376]
[1728317934086,6.7344,148.49,148.44,16.8412]
[1728317934289,6.7344,148.49,148.44,23.5779]
[1728317934585,6.7341,148.5,148.46,6.7358]
[1728317934788,6.7341,148.5,148.47,1.34691797]
[1728317935183,6.7336,148.51,148.47,1.34691797]
[1728317935783,6.7336,148.51,148.47,6.7352]
[1728317936365,6.7334,148.52,148.47,6.7352]
[1728317936565,8.0831109,148.51,148.47,6.7352]
[1728317936765,8.0831109,148.51,148.47,8.08205879]
[1728317936984,8.0831109,148.51,148.47,8.08204548]
[1728317937495,8.0831109,148.51,148.47,8.08205921]
[1728317937693,1.3496109,148.51,148.46,16.8389]
[1728317937868,6.734,148.5,148.46,23.5746]
[1728317939085,6.734,148.5,148.47,1.34689682]
[1728317939284,6.7336,148.51,148.47,1.34689682]
[1728317939486,6.7336,148.51,148.46,16.8389]
[1728317939670,6.7336,148.51,148.47,6.7352]
[1728317940069,13.2387,148.55,148.51,6.7335]
[1728317940270,1.3496109,148.55,148.5,1.34668623]
[1728317940470,6.059,148.59,148.5,1.34668623]
[1728317940691,6.059,148.59,148.54,6.7319]
[1728317940692,8.0800109,148.58,148.54,6.7319]
[1728317940991,1.3496109,148.59,148.56,6.7312]
[1728317941296,6.7291,148.61,148.57,6.7306]
[1728317941476,8.0791109,148.6,148.56,6.7312]
[1728317941674,6.73,148.59,148.55,23.5605]
[1728317942081,6.7311,148.57,148.52,23.5649]
[1728317942278,9.81422171,148.62,148.52,16.8323]
[1728317942592,1.3496109,148.62,148.55,6.7316]
[1728317943004,6.7291,148.61,148.56,8.07723628]
[1728317943188,8.0792109,148.6,148.55,6.7316]
[1728317943376,6.73,148.59,148.54,23.5619]
[1728317943769,6.73,148.59,148.55,8.07762479]
[1728317943972,6.73,148.59,148.54,23.5618]
[1728317944391,6.729,148.61,148.56,6.7308]
[1728317944690,6.729,148.61,148.57,8.07669146]
[1728317944934,1.3496109,148.62,148.58,6.7303]
[1728317945084,23.3588,148.64,148.59,8.07562826]
[1728317945470,1.3496109,148.63,148.59,8.07562826]
[1728317945787,8.0778109,148.63,148.59,8.07562826]
[1728317945979,23.3585,148.64,148.6,6.7293]
[1728317946181,8.0778109,148.63,148.59,6.7298]
[1728317946601,16.6308,148.64,148.59,1.34577748]
[1728317946898,6.7277,148.64,148.6,6.7293]
[1728317947073,0.33049,148.66,148.61,1.34569053]
[1728317947271,0.33049,148.66,148.63,6.7277]
[1728317947471,0.33049,148.66,148.62,16.8208]
[1728317947691,7.05729,148.66,148.62,23.5492]
[1728317948081,7.05729,148.66,148.63,1.34547793]
[1728317948274,7.05729,148.66,148.62,23.5492]
[1728317949200,0.33049,148.66,148.62,16.8208]
[1728317949784,7.05729,148.66,148.62,23.5492]
[1728317949981,0.33049,148.66,148.61,15.0247]
[1728317950183,0.33049,148.66,148.65,30.504084]
[1728317950390,0.33049,148.66,148.65,6.7272]
[1728317954187,0.33049,148.66,148.65,30.504084]
[1728317954901,0.33049,148.66,148.65,6.7272]
[1728317956482,0.33049,148.66,148.64,23.5461]
[1728317957092,6.7277,148.64,148.6,6.7294]
[1728317957284,1.6801009,148.66,148.57,48.8269]
[1728317957796,6.7272,148.65,148.6,6.7291]
[1728317958103,8.0776109,148.64,148.59,6.7297]
[1728317958303,6.728,148.64,148.59,6.7297]
[1728317958479,6.7286,148.62,148.58,23.5555]
[1728317958990,6.7282,148.63,148.58,23.5555]
[1728317959195,6.7277,148.64,148.58,16.8252]
[1728317959386,6.7277,148.64,148.6,6.7292]
[1728317959592,6.7273,148.65,148.61,6.729]
[1728317959798,1.3496109,148.64,148.58,16.8252]
[1728317959998,6.7277,148.64,148.6,6.7293]
[1728317963007,1.3496109,148.63,148.58,16.8252]
[1728317963189,6.7285,148.62,148.58,23.5555]
[1728317963389,6.7282,148.63,148.58,23.5555]
[1728317963613,6.7286,148.62,148.58,23.5555]
[1728317964091,1.3496109,148.61,148.55,16.8286]
[1728317964292,6.7295,148.6,148.55,16.8286]
[1728317964491,1.3496109,148.63,148.57,16.8267]
[1728317964709,6.7282,148.63,148.59,6.7299]
[1728317964888,8.4069009,148.66,148.6,1.34578562]
[1728317965088,1.6801009,148.66,148.62,6.7282]
[1728317965291,8.4072009,148.66,148.61,23.551]
[1728317966502,1.6801009,148.66,148.58,16.8252]
[1728317967013,6.7287,148.62,148.58,6.7302]
[1728317967202,6.7281,148.63,148.59,6.7298]
[1728317968112,6.7275,148.65,148.6,6.7293]
[1728317968301,8.0774109,148.64,148.6,6.7293]
[1728317969392,1.3496109,148.64,148.59,16.8245]
[1728317969611,6.7281,148.63,148.59,23.5543]
[1728317969816,1.3496109,148.62,148.59,23.5543]
[1728317970004,6.7281,148.63,148.59,23.5543]
[1728317972323,6.7272,148.65,148.61,6.7289]
[1728317973822,6.7272,148.65,148.62,1.34559176]
[1728317974213,8.4071009,148.66,148.62,6.7285]
[1728317974945,8.4071009,148.66,148.58,16.825]
[1728317974946,1.6801009,148.66,148.58,16.825]
[1728317975129,6.71601748,148.66,148.53,19.0403029]
[1728317975328,23.776884,148.65,148.53,19.0403029]
[1728317975511,6.7285,148.63,148.59,6.7298]
[1728317975817,1.3496109,148.62,148.59,6.7298]
[1728317976627,1.3496109,148.63,148.58,1.34584158]
[1728317976798,8.4069009,148.66,148.62,6.7285]
[1728317976997,6.7273,148.65,148.61,6.7289]
[1728317977316,6.7273,148.65,148.61,8.07449568]
[1728317977909,1.6801009,148.66,148.61,1.34559568]
[1728317978113,7.05729,148.66,148.62,23.5494]
[1728317978315,1.3496109,148.65,148.62,23.5494]
[1728317978908,0.33049,148.66,148.63,1.34559588]
[1728317979210,0.33049,148.66,148.64,6.7276]
[1728317979716,0.33049,148.66,148.65,6.7272]
[1728317979918,0.33049,148.66,148.64,1.34535097]
[1728317980106,0.33049,148.66,148.64,8.07285097]
[1728317980308,0.33049,148.66,148.59,16.8239]
[1728317980612,6.7273,148.65,148.59,16.8239]
[1728317980820,8.0769109,148.65,148.59,16.8239]
[1728317981018,0.33049,148.66,148.63,23.5476]
[1728317982028,0.33049,148.66,148.63,16.8197]
[1728317982237,0.33049,148.66,148.64,6.7274]
[1728317982532,0.33049,148.66,148.64,6.7276]
[1728317982829,0.33049,148.66,148.63,16.8197]
[1728317983010,0.33049,148.66,148.58,39.9563]
[1728317983213,0.33049,148.66,148.6,16.823]
[1728317983436,7.05719,148.66,148.62,6.7282]
[1728317983938,7.05719,148.66,148.61,6.7288]
[1728317983939,8.0768109,148.65,148.61,6.7288]
[1728317984825,8.4070009,148.66,148.61,6.7288]
[1728317985136,8.4070009,148.66,148.62,6.7284]
[1728317985634,1.6801009,148.66,148.62,6.7284]
[1728317985928,0.33049,148.66,148.59,23.776884]
[1728317986120,0.33049,148.66,148.63,6.728]
[1728317989411,0.33049,148.66,148.62,16.8211]
[1728317989617,0.33049,148.66,148.64,6.7276]
[1728317991729,0.33049,148.66,148.63,6.728]
[1728317993739,0.33049,148.66,148.64,16.8188]
[1728317994114,0.33049,148.66,148.6,3.51961998]
[1728317994315,6.729,148.61,148.58,3.51961998]
[1728317994527,18.1677109,148.65,148.58,3.51961998]
[1728317994837,6.7289,148.62,148.57,20.34611998]
[1728317995138,6.7282,148.63,148.57,20.34611998]
[1728317995342,1.3496109,148.62,148.57,20.34611998]
[1728317995941,1.3496109,148.62,148.59,6.7298]
[1728317996236,6.7282,148.63,148.59,6.7298]
[1728317996435,6.7278,148.64,148.59,6.7298]
[1728317996624,1.3496109,148.63,148.58,3.51961998]
[1728317996829,1.3496109,148.63,148.6,6.7294]
[1728318000217,0.33049,148.66,148.61,18.16800428]
[1728318000416,1.3496109,148.65,148.59,3.51961998]
[1728318000651,6.7282,148.63,148.59,6.7298]
[1728318000942,1.3496109,148.62,148.59,6.7298]
[1728318001744,6.7275,148.65,148.61,6.7288]
[1728318001959,8.0772109,148.64,148.6,23.5523]
[1728318002242,0.33049,148.66,148.6,16.8232]
[1728318002417,6.7272,148.65,148.61,6.7287]
[1728318003040,1.3496109,148.64,148.6,16.8232]
[1728318003236,1.3496109,148.64,148.58,3.51961998]
[1728318003431,6.729,148.61,148.58,3.51961998]
[1728318003632,1.3496109,148.64,148.57,20.34571998]
[1728318003939,8.0775109,148.64,148.59,6.7296]
[1728318004142,8.0775109,148.64,148.6,6.7294]
[1728318004442,8.0769109,148.65,148.61,6.7286]
[1728318004620,6.7284,148.63,148.59,16.8244]
[1728318004824,1.3496109,148.62,148.59,16.8244]
[1728318005447,1.3496109,148.62,148.59,23.5543]
[1728318005816,8.0781109,148.62,148.59,16.8244]
[1728318006123,1.3496109,148.61,148.58,3.51961998]
[1728318006330,6.729,148.61,148.58,3.51961998]
[1728318006523,1.3496109,148.6,148.58,3.51961998]
[1728318006727,6.7286,148.62,148.58,10.24961998]
[1728318006921,1.3496109,148.64,148.58,20.34501998]
[1728318007240,1.3496109,148.64,148.59,6.7297]
[1728318007429,6.7285,148.62,148.59,6.7297]
[1728318007624,1.3496109,148.61,148.59,6.7297]
[1728318007838,6.7285,148.62,148.59,6.7297]
[1728318008047,1.3496109,148.61,148.58,27.07521998]
[1728318008537,1.3496109,148.61,148.58,3.51961998]
[1728318008737,6.7294,148.6,148.58,3.51961998]
[1728318008955,1.3496109,148.59,148.58,3.51961998]
[1728318009119,1.3496109,148.59,148.57,3.51961998]
[1728318009820,1.3496109,148.63,148.57,3.51961998]
[1728318010021,6.7288,148.62,148.58,6.7303]
[1728318010223,1.3496109,148.61,148.58,10.24991998]
[1728318010442,1.3496109,148.61,148.59,6.7298]
[1728318010946,1.3496109,148.61,148.58,10.24981998]
[1728318012230,1.3496109,148.61,148.58,3.51961998]
[1728318012489,6.7303,148.58,148.57,3.51961998]
[1728318012745,6.7308,148.57,148.56,3.51961998]
[1728318012925,23.2889109,148.58,148.51,30.91127992]
[1728318012926,23.2889109,148.58,148.54,3.51961998]
[1728318013134,6.7317,148.55,148.54,3.51961998]
[1728318013339,8.0813109,148.55,148.54,3.51961998]
[1728318013555,6.7321,148.54,148.53,3.51961998]
[1728318013847,1.3496109,148.54,148.51,3.51961998]
[1728318014044,1.3496109,148.54,148.51,10.25301998]
[1728318014228,1.3496109,148.54,148.51,6.7334]
[1728318014627,8.0819109,148.54,148.5,23.5682]
[1728318015042,8.0819109,148.54,148.5,16.8346]
[1728318015951,6.7335,148.51,148.47,27.09221998]
[1728318016145,1.3496109,148.5,148.47,16.8376]
[1728318016536,1.3496109,148.51,148.48,6.7348]
[1728318017441,6.7334,148.52,148.47,23.5728]
[1728318017646,1.3496109,148.51,148.47,23.5728]
[1728318017853,8.0832109,148.51,148.47,23.5728]
[1728318018036,8.0832109,148.51,148.47,16.8376]
[1728318019148,8.0832109,148.51,148.47,23.5728]
[1728318020663,23.3334109,148.51,148.47,23.5728]
[1728318021942,16.5998109,148.51,148.47,23.5728]
[1728318022270,1.3496109,148.51,148.47,16.8376]
[1728318022559,6.7326,148.53,148.49,6.7344]
[1728318022764,1.3496109,148.52,148.49,6.7344]
[1728318024343,1.3496109,148.52,148.5,6.7337]
[1728318024543,1.3496109,148.52,148.49,16.8356]
[1728318024544,1.3496109,148.53,148.49,16.8356]
[1728318024754,8.0822109,148.53,148.49,23.5699]
[1728318025671,1.3496109,148.54,148.51,6.7332]
[1728318026550,1.3496109,148.54,148.49,16.8356]
[1728318026765,1.3496109,148.54,148.49,23.5699]
[1728318026766,6.733,148.53,148.49,23.5699]
[1728318026960,6.7336,148.51,148.47,6.7352]
[1728318027275,15.6639,148.55,148.46,16.8389]
[1728318027276,1.3496109,148.5,148.46,16.8389]
[1728318027449,25.1264949,148.54,148.46,16.8389]
[1728318027973,6.734,148.5,148.46,23.5744]
[1728318028145,1.3496109,148.49,148.46,23.5744]
[1728318029074,1.3496109,148.49,148.46,23.5745]
[1728318029762,1.3496109,148.49,148.47,6.7353]
[1728318029975,1.3496109,148.5,148.47,6.7353]
[1728318030371,1.3496109,148.5,148.46,16.8389]
[1728318030559,23.776884,148.52,148.46,16.8389]
[1728318030761,1.3496109,148.51,148.46,16.8389]
[1728318031072,1.3496109,148.5,148.48,6.7348]
[1728318031252,1.3496109,148.51,148.48,6.7348]
[1728318031653,1.3496109,148.52,148.5,6.734]
[1728318031853,8.0818109,148.54,148.5,6.734]
[1728318032070,1.3496109,148.54,148.5,16.8342]
[1728318032266,1.3496109,148.54,148.52,16.8324]
[1728318032481,1.3496109,148.57,148.54,6.7321]
[1728318033093,1.3496109,148.57,148.55,6.7316]
[1728318034782,16.821,148.63,148.55,6.7316]
[1728318034783,7.6452109,148.62,148.56,16.8276]